[Event "Titled Tuesday Blitz June 6 Late 2023"]
[White "Amanov, Zhanibek"]
[Black "mohsengabr2002"]
[WhiteFideId "13700189"]
[WhiteElo "2134"]
[BlackElo "2262"]
[Result "0-1"]
[Round "8"]
[TimeControl "180+2"]
[Date "2023.06.07"]
[WhiteClock "0:00:01"]
[BlackClock "0:00:45"]
[Board "108"]

1. e4 {[%clk 0:03:00]}  f6 {[%clk 0:02:43]} 2. f4 {[%clk 0:02:59]}  g6 {[%clk 0:02:44]} 3. Nf3 {[%clk 0:02:59]}  e6 {[%clk 0:02:44]} 4. d4 {[%clk 0:02:59]}  Nh6 {[%clk 0:02:45]} 5. Bc4 {[%clk 0:02:57]}  Bg7 {[%clk 0:02:46]} 6. c3 {[%clk 0:02:56]}  Nf7 {[%clk 0:02:46]} 7. Qb3 {[%clk 0:02:54]}  O-O {[%clk 0:02:45]} 8. Be3 {[%clk 0:02:52]}  f5 {[%clk 0:02:44]} 9. Nbd2 {[%clk 0:02:51]}  fxe4 {[%clk 0:02:40]} 10. Ne5 {[%clk 0:02:47]}  d5 {[%clk 0:02:35]} 11. Be2 {[%clk 0:02:45]}  Nd7 {[%clk 0:02:26]} 12. Nxf7 {[%clk 0:02:41]}  Rxf7 {[%clk 0:02:26]} 13. O-O-O {[%clk 0:02:36]}  b6 {[%clk 0:02:26]} 14. h4 {[%clk 0:02:35]}  c5 {[%clk 0:02:23]} 15. h5 {[%clk 0:02:28]}  cxd4 {[%clk 0:02:22]} 16. cxd4 {[%clk 0:02:27]}  a5 {[%clk 0:02:15]} 17. hxg6 {[%clk 0:02:24]}  hxg6 {[%clk 0:02:16]} 18. g4 {[%clk 0:02:21]}  a4 {[%clk 0:02:15]} 19. Qc2 {[%clk 0:02:20]}  a3 {[%clk 0:02:08]} 20. b3 {[%clk 0:02:20]}  Ba6 {[%clk 0:02:04]} 21. Bxa6 {[%clk 0:02:19]}  Rxa6 {[%clk 0:02:05]} 22. f5 {[%clk 0:02:16]}  exf5 {[%clk 0:02:03]} 23. gxf5 {[%clk 0:02:16]}  Rxf5 {[%clk 0:02:03]} 24. Rdg1 {[%clk 0:02:16]}  b5 {[%clk 0:01:58]} 25. Kb1 {[%clk 0:02:06]}  Rff6 {[%clk 0:01:51]} 26. Bg5 {[%clk 0:02:04]}  Qf8 {[%clk 0:01:42]} 27. Bxf6 {[%clk 0:02:00]}  Qxf6 {[%clk 0:01:42]} 28. Qc8+ {[%clk 0:01:11]}  Nf8 {[%clk 0:01:42]} 29. Qc5 {[%clk 0:01:11]}  Qxd4 {[%clk 0:01:36]} 30. Qxd4 {[%clk 0:01:08]}  Bxd4 {[%clk 0:01:37]} 31. Rg5 {[%clk 0:01:05]}  Rd6 {[%clk 0:01:34]} 32. Rd1 {[%clk 0:00:56]}  Be3 {[%clk 0:01:33]} 33. Re5 {[%clk 0:00:47]}  Bf4 {[%clk 0:01:26]} 34. Re7 {[%clk 0:00:46]}  Bg5 {[%clk 0:01:12]} 35. Rb7 {[%clk 0:00:43]}  Bxd2 {[%clk 0:01:10]} 36. Rxd2 {[%clk 0:00:43]}  e3 {[%clk 0:01:10]} 37. Re2 {[%clk 0:00:36]}  d4 {[%clk 0:01:10]} 38. Kc1 {[%clk 0:00:31]}  Rc6+ {[%clk 0:01:08]} 39. Kd1 {[%clk 0:00:31]}  Rf6 {[%clk 0:01:07]} 40. Rxb5 {[%clk 0:00:28]}  Ne6 {[%clk 0:01:00]} 41. Rd5 {[%clk 0:00:19]}  Rf1+ {[%clk 0:00:52]} 42. Re1 {[%clk 0:00:14]}  Rf2 {[%clk 0:00:52]} 43. Re5 {[%clk 0:00:03]}  Rd2+ {[%clk 0:00:49]} 44. Kc1 {[%clk 0:00:03]}  Kf7 {[%clk 0:00:49]} 45. R5xe3 {[%clk 0:00:02]}  dxe3 {[%clk 0:00:49]} 46. Rxe3 {[%clk 0:00:03]}  Rxa2 {[%clk 0:00:49]} 47. b4 {[%clk 0:00:03]}  Nd4 {[%clk 0:00:46]} 48. b5 {[%clk 0:00:02]}  Nxb5 {[%clk 0:00:46]} 49. Rb3 {[%clk 0:00:01]}  Rb2 {[%clk 0:00:45]} 0-1


[Site "https://www.chess.com"]

[Event "Titled Tuesday Blitz June 6 Late 2023"]
[White "MrAnnihilation"]
[Black "Lopez Perdomo, Juan David"]
[BlackFideId "4405137"]
[WhiteElo "2396"]
[BlackElo "1965"]
[Result "1-0"]
[Round "8"]
[TimeControl "180+2"]
[Date "2023.06.07"]
[WhiteClock "0:00:46"]
[BlackClock "0:00:22"]
[Board "109"]

1. e4 {[%clk 0:03:00]}  e6 {[%clk 0:03:00]} 2. d3 {[%clk 0:03:00]}  d5 {[%clk 0:03:01]} 3. Qe2 {[%clk 0:02:59]}  Nf6 {[%clk 0:03:01]} 4. Nf3 {[%clk 0:03:00]}  c5 {[%clk 0:02:59]} 5. g3 {[%clk 0:03:00]}  Nc6 {[%clk 0:02:58]} 6. Bg2 {[%clk 0:03:00]}  Qc7 {[%clk 0:02:54]} 7. O-O {[%clk 0:03:00]}  dxe4 {[%clk 0:02:46]} 8. dxe4 {[%clk 0:03:00]}  Be7 {[%clk 0:02:47]} 9. e5 {[%clk 0:02:57]}  Nd7 {[%clk 0:02:46]} 10. Re1 {[%clk 0:02:56]}  O-O {[%clk 0:02:46]} 11. h4 {[%clk 0:02:56]}  b6 {[%clk 0:02:45]} 12. Nc3 {[%clk 0:02:45]}  Nb4 {[%clk 0:02:44]} 13. Ng5 {[%clk 0:02:27]}  Ba6 {[%clk 0:02:43]} 14. Qe4 {[%clk 0:01:53]}  Bxg5 {[%clk 0:02:20]} 15. Bxg5 {[%clk 0:01:54]}  Rab8 {[%clk 0:01:58]} 16. Rad1 {[%clk 0:01:32]}  Bb7 {[%clk 0:01:56]} 17. Rxd7 {[%clk 0:01:05]}  Qxd7 {[%clk 0:01:55]} 18. Qg4 {[%clk 0:01:04]}  Bxg2 {[%clk 0:01:41]} 19. Bf6 {[%clk 0:01:01]}  g6 {[%clk 0:01:19]} 20. Qg5 {[%clk 0:00:52]}  Qd2 {[%clk 0:00:22]} 21. Qxd2 {[%clk 0:00:46]} 1-0


[Site "https://www.chess.com"]

[Event "Titled Tuesday Blitz June 6 Late 2023"]
[White "Cluke86"]
[Black "The_Straightforward_Rook"]
[WhiteElo "2152"]
[BlackElo "2371"]
[Result "0-1"]
[Round "8"]
[TimeControl "180+2"]
[Date "2023.06.07"]
[WhiteClock "0:01:07"]
[BlackClock "0:01:26"]
[Board "110"]

1. e4 {[%clk 0:02:55]}  c5 {[%clk 0:02:56]} 2. Nc3 {[%clk 0:02:55]}  Nc6 {[%clk 0:02:55]} 3. f4 {[%clk 0:02:56]}  e6 {[%clk 0:02:55]} 4. Nf3 {[%clk 0:02:53]}  d5 {[%clk 0:02:55]} 5. d3 {[%clk 0:02:51]}  dxe4 {[%clk 0:02:54]} 6. dxe4 {[%clk 0:02:52]}  Qxd1+ {[%clk 0:02:53]} 7. Nxd1 {[%clk 0:02:50]}  Nf6 {[%clk 0:02:52]} 8. e5 {[%clk 0:02:47]}  Nd5 {[%clk 0:02:51]} 9. Bb5 {[%clk 0:02:45]}  Bd7 {[%clk 0:02:51]} 10. c3 {[%clk 0:02:41]}  a6 {[%clk 0:02:49]} 11. Bd3 {[%clk 0:02:38]}  Be7 {[%clk 0:02:47]} 12. g3 {[%clk 0:02:38]}  h5 {[%clk 0:02:44]} 13. h4 {[%clk 0:02:36]}  g6 {[%clk 0:02:41]} 14. Be3 {[%clk 0:02:35]}  b5 {[%clk 0:02:39]} 15. Ke2 {[%clk 0:02:33]}  c4 {[%clk 0:02:39]} 16. Be4 {[%clk 0:02:33]}  O-O-O {[%clk 0:02:35]} 17. a4 {[%clk 0:02:27]}  Kb7 {[%clk 0:02:33]} 18. axb5 {[%clk 0:02:24]}  axb5 {[%clk 0:02:33]} 19. Bd4 {[%clk 0:02:12]}  Ra8 {[%clk 0:02:31]} 20. Ne3 {[%clk 0:02:11]}  Nxd4+ {[%clk 0:02:09]} 21. Nxd4 {[%clk 0:02:07]}  Bc6 {[%clk 0:02:06]} 22. Bxd5 {[%clk 0:01:54]}  exd5 {[%clk 0:01:59]} 23. Nec2 {[%clk 0:01:52]}  Bc5 {[%clk 0:01:52]} 24. Ke3 {[%clk 0:01:39]}  Bd7 {[%clk 0:01:51]} 25. Rxa8 {[%clk 0:01:37]}  Rxa8 {[%clk 0:01:50]} 26. Ra1 {[%clk 0:01:38]}  Rxa1 {[%clk 0:01:47]} 27. Nxa1 {[%clk 0:01:39]}  Bf5 {[%clk 0:01:47]} 28. Kd2 {[%clk 0:01:34]}  Bxd4 {[%clk 0:01:43]} 29. cxd4 {[%clk 0:01:35]}  b4 {[%clk 0:01:42]} 30. Nc2 {[%clk 0:01:31]}  Bxc2 {[%clk 0:01:42]} 31. Kxc2 {[%clk 0:01:31]}  Kc6 {[%clk 0:01:42]} 32. Kd2 {[%clk 0:01:30]}  Kb5 {[%clk 0:01:42]} 33. Kc2 {[%clk 0:01:30]}  Ka4 {[%clk 0:01:41]} 34. Kc1 {[%clk 0:01:16]}  Kb3 {[%clk 0:01:36]} 35. g4 {[%clk 0:01:12]}  hxg4 {[%clk 0:01:32]} 36. f5 {[%clk 0:01:12]}  gxf5 {[%clk 0:01:23]} 37. h5 {[%clk 0:01:10]}  g3 {[%clk 0:01:24]} 38. h6 {[%clk 0:01:11]}  g2 {[%clk 0:01:24]} 39. h7 {[%clk 0:01:10]}  g1=Q+ {[%clk 0:01:24]} 40. Kd2 {[%clk 0:01:08]}  Qh2+ {[%clk 0:01:25]} 41. Ke3 {[%clk 0:01:07]}  Qxh7 {[%clk 0:01:26]} 0-1


[Site "https://www.chess.com"]

[Event "Titled Tuesday Blitz June 6 Late 2023"]
[White "Shapiro, Viktor"]
[Black "Winkels, Marcel"]
[WhiteFideId "4175700"]
[BlackFideId "1003887"]
[WhiteElo "2212"]
[BlackElo "1900"]
[Result "1-0"]
[Round "8"]
[TimeControl "180+2"]
[Date "2023.06.07"]
[WhiteClock "0:00:36"]
[BlackClock "0:00:02"]
[Board "115"]

1. d4 {[%clk 0:02:56]}  Nf6 {[%clk 0:02:58]} 2. c4 {[%clk 0:02:56]}  g6 {[%clk 0:02:58]} 3. Nc3 {[%clk 0:02:56]}  d5 {[%clk 0:02:58]} 4. cxd5 {[%clk 0:02:56]}  Nxd5 {[%clk 0:02:59]} 5. Qb3 {[%clk 0:02:56]}  Nb6 {[%clk 0:02:55]} 6. Nf3 {[%clk 0:02:56]}  Bg7 {[%clk 0:02:53]} 7. Bf4 {[%clk 0:02:56]}  O-O {[%clk 0:02:48]} 8. Rd1 {[%clk 0:02:56]}  a6 {[%clk 0:02:37]} 9. e4 {[%clk 0:02:54]}  Nc6 {[%clk 0:02:35]} 10. d5 {[%clk 0:02:54]}  Nb8 {[%clk 0:02:18]} 11. h4 {[%clk 0:02:54]}  Bg4 {[%clk 0:02:17]} 12. Be2 {[%clk 0:02:53]}  N8d7 {[%clk 0:02:15]} 13. Ng5 {[%clk 0:02:30]}  Bxe2 {[%clk 0:02:11]} 14. Kxe2 {[%clk 0:02:31]}  Ne5 {[%clk 0:02:00]} 15. h5 {[%clk 0:02:09]}  h6 {[%clk 0:01:48]} 16. Nf3 {[%clk 0:02:10]}  Nxf3 {[%clk 0:01:48]} 17. gxf3 {[%clk 0:02:10]}  g5 {[%clk 0:01:46]} 18. Be3 {[%clk 0:02:09]}  Qd6 {[%clk 0:01:31]} 19. Rhg1 {[%clk 0:02:01]}  f5 {[%clk 0:01:24]} 20. Bxg5 {[%clk 0:01:44]}  hxg5 {[%clk 0:01:17]} 21. Rxg5 {[%clk 0:01:44]}  Kh7 {[%clk 0:01:13]} 22. Rdg1 {[%clk 0:01:31]}  Bh6 {[%clk 0:01:12]} 23. Rg6 {[%clk 0:01:30]}  Qf4 {[%clk 0:00:58]} 24. R1g3 {[%clk 0:00:52]}  a5 {[%clk 0:00:55]} 25. Re6 {[%clk 0:00:46]}  Rae8 {[%clk 0:00:28]} 26. e5 {[%clk 0:00:36]}  Qd2+ {[%clk 0:00:23]} 27. Kf1 {[%clk 0:00:36]}  Qc1+ {[%clk 0:00:13]} 28. Kg2 {[%clk 0:00:36]}  f4 {[%clk 0:00:12]} 29. Rgg6 {[%clk 0:00:36]}  Bg7 {[%clk 0:00:05]} 30. Ne4 {[%clk 0:00:36]}  Rg8 {[%clk 0:00:02]} 31. Ng5+ {[%clk 0:00:36]}  Kh8 {[%clk 0:00:02]} 32. h6 {[%clk 0:00:36]} 1-0


[Site "https://www.chess.com"]

[Event "Titled Tuesday Blitz June 6 Late 2023"]
[White "Hartikainen, Jarmo"]
[Black "Gerbelli Neto, Eduardo"]
[WhiteFideId "503134"]
[BlackFideId "2103281"]
[WhiteElo "2133"]
[BlackElo "2178"]
[Result "0-1"]
[Round "8"]
[TimeControl "180+2"]
[Date "2023.06.07"]
[WhiteClock "0:00:06"]
[BlackClock "0:00:27"]
[Board "117"]

1. e4 {[%clk 0:03:00]}  e5 {[%clk 0:02:59]} 2. Nf3 {[%clk 0:03:00]}  Nc6 {[%clk 0:02:59]} 3. Bc4 {[%clk 0:03:00]}  Nf6 {[%clk 0:02:58]} 4. Ng5 {[%clk 0:02:59]}  d5 {[%clk 0:02:58]} 5. exd5 {[%clk 0:02:58]}  Nd4 {[%clk 0:02:59]} 6. c3 {[%clk 0:02:48]}  b5 {[%clk 0:02:58]} 7. cxd4 {[%clk 0:02:45]}  bxc4 {[%clk 0:02:58]} 8. dxe5 {[%clk 0:02:28]}  Qxd5 {[%clk 0:02:57]} 9. exf6 {[%clk 0:01:53]}  Qxg5 {[%clk 0:02:53]} 10. Qf3 {[%clk 0:01:32]}  Rb8 {[%clk 0:02:01]} 11. O-O {[%clk 0:01:25]}  Qxf6 {[%clk 0:01:50]} 12. Qxf6 {[%clk 0:01:12]}  gxf6 {[%clk 0:01:49]} 13. Re1+ {[%clk 0:01:05]}  Be6 {[%clk 0:01:49]} 14. Nc3 {[%clk 0:01:04]}  f5 {[%clk 0:01:36]} 15. Nd5 {[%clk 0:00:45]}  Kd7 {[%clk 0:01:36]} 16. Nf4 {[%clk 0:00:30]}  Bg7 {[%clk 0:01:32]} 17. Nxe6 {[%clk 0:00:19]}  fxe6 {[%clk 0:01:33]} 18. d3 {[%clk 0:00:20]}  cxd3 {[%clk 0:01:21]} 19. Rd1 {[%clk 0:00:20]}  Bxb2 {[%clk 0:01:19]} 20. Rxd3+ {[%clk 0:00:20]}  Kc6 {[%clk 0:01:12]} 21. Bxb2 {[%clk 0:00:20]}  Rxb2 {[%clk 0:01:12]} 22. Rc3+ {[%clk 0:00:20]}  Kb7 {[%clk 0:01:11]} 23. Rac1 {[%clk 0:00:21]}  Rc8 {[%clk 0:01:08]} 24. a3 {[%clk 0:00:21]}  c6 {[%clk 0:00:54]} 25. g3 {[%clk 0:00:21]}  Kb6 {[%clk 0:00:54]} 26. Kg2 {[%clk 0:00:21]}  c5 {[%clk 0:00:54]} 27. Kf3 {[%clk 0:00:20]}  a5 {[%clk 0:00:52]} 28. h4 {[%clk 0:00:19]}  a4 {[%clk 0:00:52]} 29. Ke3 {[%clk 0:00:16]}  Rb3 {[%clk 0:00:51]} 30. Kf4 {[%clk 0:00:14]}  Rc6 {[%clk 0:00:48]} 31. Ke5 {[%clk 0:00:13]}  Kb5 {[%clk 0:00:47]} 32. f3 {[%clk 0:00:13]}  c4 {[%clk 0:00:46]} 33. g4 {[%clk 0:00:13]}  fxg4 {[%clk 0:00:45]} 34. fxg4 {[%clk 0:00:13]}  Rb2 {[%clk 0:00:45]} 35. R1c2 {[%clk 0:00:12]}  Rxc2 {[%clk 0:00:43]} 36. Rxc2 {[%clk 0:00:12]}  Kc5 {[%clk 0:00:42]} 37. g5 {[%clk 0:00:12]}  Rb6 {[%clk 0:00:39]} 38. h5 {[%clk 0:00:12]}  Rb3 {[%clk 0:00:38]} 39. Rg2 {[%clk 0:00:12]}  Rh3 {[%clk 0:00:29]} 40. g6 {[%clk 0:00:11]}  Rxh5+ {[%clk 0:00:29]} 41. Kxe6 {[%clk 0:00:12]}  hxg6 {[%clk 0:00:29]} 42. Kf6 {[%clk 0:00:11]}  c3 {[%clk 0:00:25]} 43. Kxg6 {[%clk 0:00:11]}  Rd5 {[%clk 0:00:25]} 44. Rc2 {[%clk 0:00:10]}  Kc4 {[%clk 0:00:26]} 45. Kf6 {[%clk 0:00:09]}  Kb3 {[%clk 0:00:26]} 46. Rc1 {[%clk 0:00:06]}  c2 {[%clk 0:00:27]} 47. Ke6 {[%clk 0:00:06]}  Rd1 {[%clk 0:00:27]} 0-1


[Site "https://www.chess.com"]

[Event "Titled Tuesday Blitz June 6 Late 2023"]
[White "Rian, Kapriaga"]
[Black "Ricaurte Lopez, Juan Carlos"]
[WhiteFideId "7103263"]
[BlackFideId "3600327"]
[WhiteElo "2319"]
[BlackElo "2200"]
[Result "1-0"]
[Round "8"]
[TimeControl "180+2"]
[Date "2023.06.07"]
[WhiteClock "0:01:27"]
[BlackClock "0:00:41"]
[Board "118"]

1. d4 {[%clk 0:02:50]}  Nf6 {[%clk 0:02:56]} 2. c4 {[%clk 0:02:49]}  e6 {[%clk 0:02:55]} 3. g3 {[%clk 0:02:49]}  c5 {[%clk 0:02:47]} 4. d5 {[%clk 0:02:45]}  exd5 {[%clk 0:02:46]} 5. cxd5 {[%clk 0:02:44]}  d6 {[%clk 0:02:45]} 6. Nf3 {[%clk 0:02:41]}  g6 {[%clk 0:02:45]} 7. Bg2 {[%clk 0:02:40]}  Bg7 {[%clk 0:02:44]} 8. Nc3 {[%clk 0:02:39]}  O-O {[%clk 0:02:44]} 9. O-O {[%clk 0:02:38]}  Re8 {[%clk 0:02:42]} 10. Bf4 {[%clk 0:02:33]}  Nh5 {[%clk 0:02:39]} 11. Bg5 {[%clk 0:02:32]}  Qb6 {[%clk 0:02:37]} 12. Qc1 {[%clk 0:02:20]}  Na6 {[%clk 0:02:28]} 13. Nd2 {[%clk 0:02:18]}  Bxc3 {[%clk 0:02:12]} 14. Qxc3 {[%clk 0:02:13]}  Rxe2 {[%clk 0:02:03]} 15. Bf3 {[%clk 0:02:11]}  Re5 {[%clk 0:01:39]} 16. Nc4 {[%clk 0:02:08]}  Rxg5 {[%clk 0:01:22]} 17. Nxb6 {[%clk 0:02:07]}  axb6 {[%clk 0:01:21]} 18. Bxh5 {[%clk 0:02:01]}  Rxh5 {[%clk 0:01:19]} 19. Rfe1 {[%clk 0:01:55]}  Bh3 {[%clk 0:01:04]} 20. Re7 {[%clk 0:01:53]}  Nb4 {[%clk 0:00:59]} 21. Rd1 {[%clk 0:01:49]}  Nxd5 {[%clk 0:00:54]} 22. Rxd5 {[%clk 0:01:36]}  Rxd5 {[%clk 0:00:52]} 23. Qf3 {[%clk 0:01:30]}  Rxa2 {[%clk 0:00:41]} 24. Qxf7+ {[%clk 0:01:27]} 1-0


[Site "https://www.chess.com"]

[Event "Titled Tuesday Blitz June 6 Late 2023"]
[White "Srdanovic, Jovana"]
[Black "Torres Dominguez, David"]
[WhiteFideId "954810"]
[BlackFideId "2220857"]
[WhiteElo "2155"]
[BlackElo "1999"]
[Result "1-0"]
[Round "8"]
[TimeControl "180+2"]
[Date "2023.06.07"]
[WhiteClock "0:00:16"]
[BlackClock "0:00:01"]
[Board "119"]

1. d4 {[%clk 0:03:00]}  e5 {[%clk 0:02:27]} 2. d5 {[%clk 0:02:54]}  Bc5 {[%clk 0:02:26]} 3. e4 {[%clk 0:02:43]}  d6 {[%clk 0:02:26]} 4. h3 {[%clk 0:02:35]}  Ne7 {[%clk 0:02:21]} 5. a4 {[%clk 0:02:31]}  O-O {[%clk 0:02:21]} 6. c3 {[%clk 0:02:31]}  a5 {[%clk 0:02:19]} 7. Bd3 {[%clk 0:02:29]}  f5 {[%clk 0:02:18]} 8. Nf3 {[%clk 0:02:22]}  fxe4 {[%clk 0:02:16]} 9. Bxe4 {[%clk 0:02:22]}  Nd7 {[%clk 0:02:01]} 10. Bg5 {[%clk 0:02:18]}  Nf6 {[%clk 0:01:52]} 11. Bxf6 {[%clk 0:02:15]}  Rxf6 {[%clk 0:01:53]} 12. Qc2 {[%clk 0:02:10]}  Nf5 {[%clk 0:01:40]} 13. Nbd2 {[%clk 0:01:56]}  h6 {[%clk 0:01:36]} 14. O-O-O {[%clk 0:01:50]}  Qf8 {[%clk 0:01:34]} 15. Rhf1 {[%clk 0:01:18]}  Ne7 {[%clk 0:01:27]} 16. Bh7+ {[%clk 0:00:46]}  Kh8 {[%clk 0:01:27]} 17. Ne4 {[%clk 0:00:46]}  Rxf3 {[%clk 0:01:15]} 18. gxf3 {[%clk 0:00:42]}  Bb6 {[%clk 0:01:13]} 19. Ng3 {[%clk 0:00:38]}  Qxf3 {[%clk 0:01:08]} 20. Be4 {[%clk 0:00:38]}  Qf4+ {[%clk 0:01:07]} 21. Kb1 {[%clk 0:00:36]}  Bd7 {[%clk 0:01:07]} 22. Ne2 {[%clk 0:00:31]}  Qh4 {[%clk 0:00:42]} 23. f4 {[%clk 0:00:30]}  exf4 {[%clk 0:00:24]} 24. Rxf4 {[%clk 0:00:31]}  Qg5 {[%clk 0:00:22]} 25. Rdf1 {[%clk 0:00:31]}  g6 {[%clk 0:00:12]} 26. h4 {[%clk 0:00:28]}  Qe5 {[%clk 0:00:10]} 27. Bxg6 {[%clk 0:00:20]}  Rg8 {[%clk 0:00:07]} 28. Be4 {[%clk 0:00:16]}  Be3 {[%clk 0:00:04]} 29. Rf7 {[%clk 0:00:16]}  Bxa4 {[%clk 0:00:01]} 30. Rh7# {[%clk 0:00:16]} 1-0


[Site "https://www.chess.com"]

[Event "Titled Tuesday Blitz June 6 Late 2023"]
[White "Vila Dupla, Aurelio"]
[Black "Mikhalsky, Vladimir"]
[WhiteFideId "2203383"]
[BlackFideId "14144352"]
[WhiteElo "2009"]
[BlackElo "2236"]
[Result "1-0"]
[Round "8"]
[TimeControl "180+2"]
[Date "2023.06.07"]
[WhiteClock "0:00:42"]
[BlackClock "0:01:39"]
[Board "120"]

1. Nf3 {[%clk 0:03:00]}  c5 {[%clk 0:02:59]} 2. c4 {[%clk 0:02:59]}  Nf6 {[%clk 0:02:58]} 3. Nc3 {[%clk 0:02:59]}  d5 {[%clk 0:02:58]} 4. cxd5 {[%clk 0:02:59]}  Nxd5 {[%clk 0:02:58]} 5. e4 {[%clk 0:02:59]}  Nb4 {[%clk 0:02:56]} 6. Bb5+ {[%clk 0:02:57]}  Bd7 {[%clk 0:02:44]} 7. a3 {[%clk 0:02:56]}  Bxb5 {[%clk 0:02:39]} 8. axb4 {[%clk 0:02:56]}  Bd3 {[%clk 0:02:35]} 9. Qa4+ {[%clk 0:02:37]}  Nc6 {[%clk 0:02:28]} 10. b5 {[%clk 0:02:37]}  Nb4 {[%clk 0:02:18]} 11. b6+ {[%clk 0:02:22]}  Nc6 {[%clk 0:02:18]} 12. Ne5 {[%clk 0:02:10]}  axb6 {[%clk 0:02:11]} 13. Qxa8 {[%clk 0:02:06]}  Nxe5 {[%clk 0:02:04]} 14. Qxb7 {[%clk 0:01:59]}  Bc4 {[%clk 0:01:49]} 15. Ra8 {[%clk 0:00:59]}  Nd3+ {[%clk 0:01:48]} 16. Ke2 {[%clk 0:00:52]}  Nxc1+ {[%clk 0:01:46]} 17. Kd1 {[%clk 0:00:44]}  Nd3 {[%clk 0:01:39]} 18. Qc6# {[%clk 0:00:42]} 1-0


[Site "https://www.chess.com"]

[Event "Titled Tuesday Blitz June 6 Late 2023"]
[White "Brown, Raehanna"]
[Black "Ruiz Aguilar, Pablo Alexander"]
[WhiteFideId "7402740"]
[BlackFideId "4401352"]
[WhiteElo "1655"]
[BlackElo "2111"]
[Result "0-1"]
[Round "8"]
[TimeControl "180+2"]
[Date "2023.06.07"]
[WhiteClock "0:01:13"]
[BlackClock "0:01:35"]
[Board "121"]

1. c4 {[%clk 0:03:00]}  c6 {[%clk 0:02:59]} 2. e4 {[%clk 0:03:00]}  d5 {[%clk 0:02:58]} 3. cxd5 {[%clk 0:03:00]}  cxd5 {[%clk 0:02:59]} 4. exd5 {[%clk 0:03:01]}  Qxd5 {[%clk 0:02:59]} 5. Nc3 {[%clk 0:03:01]}  Qd8 {[%clk 0:02:59]} 6. Nf3 {[%clk 0:03:02]}  Nf6 {[%clk 0:03:00]} 7. d4 {[%clk 0:02:59]}  e6 {[%clk 0:02:58]} 8. Be2 {[%clk 0:02:57]}  a6 {[%clk 0:02:59]} 9. O-O {[%clk 0:02:57]}  Be7 {[%clk 0:02:59]} 10. Ne5 {[%clk 0:02:54]}  O-O {[%clk 0:03:00]} 11. Bf3 {[%clk 0:02:54]}  Nbd7 {[%clk 0:02:40]} 12. Nxd7 {[%clk 0:02:33]}  Qxd7 {[%clk 0:02:38]} 13. Bg5 {[%clk 0:02:31]}  Rb8 {[%clk 0:02:33]} 14. Rc1 {[%clk 0:02:23]}  b5 {[%clk 0:02:32]} 15. Bxf6 {[%clk 0:02:21]}  Bxf6 {[%clk 0:02:32]} 16. d5 {[%clk 0:02:20]}  Bxc3 {[%clk 0:02:24]} 17. Rxc3 {[%clk 0:02:14]}  Bb7 {[%clk 0:02:24]} 18. dxe6 {[%clk 0:02:12]}  Qxe6 {[%clk 0:02:24]} 19. a3 {[%clk 0:02:09]}  Bxf3 {[%clk 0:02:20]} 20. Rxf3 {[%clk 0:02:08]}  b4 {[%clk 0:02:19]} 21. Qa4 {[%clk 0:02:06]}  bxa3 {[%clk 0:02:17]} 22. bxa3 {[%clk 0:02:07]}  Rb5 {[%clk 0:02:11]} 23. Re3 {[%clk 0:02:05]}  Qb6 {[%clk 0:02:08]} 24. h3 {[%clk 0:02:00]}  h6 {[%clk 0:02:06]} 25. Rg3 {[%clk 0:01:58]}  Rg5 {[%clk 0:02:03]} 26. Rxg5 {[%clk 0:01:54]}  hxg5 {[%clk 0:02:03]} 27. Re1 {[%clk 0:01:54]}  Qd6 {[%clk 0:01:56]} 28. Re3 {[%clk 0:01:52]}  Rd8 {[%clk 0:01:54]} 29. Re8+ {[%clk 0:01:40]}  Rxe8 {[%clk 0:01:53]} 30. Qxe8+ {[%clk 0:01:41]}  Kh7 {[%clk 0:01:53]} 31. Qe4+ {[%clk 0:01:41]}  g6 {[%clk 0:01:52]} 32. Qb7 {[%clk 0:01:39]}  Kg7 {[%clk 0:01:50]} 33. Qb2+ {[%clk 0:01:35]}  Qf6 {[%clk 0:01:48]} 34. Qxf6+ {[%clk 0:01:34]}  Kxf6 {[%clk 0:01:48]} 35. Kf1 {[%clk 0:01:34]}  Ke5 {[%clk 0:01:49]} 36. Ke2 {[%clk 0:01:35]}  Kd4 {[%clk 0:01:49]} 37. g3 {[%clk 0:01:27]}  Kc4 {[%clk 0:01:49]} 38. f4 {[%clk 0:01:20]}  gxf4 {[%clk 0:01:45]} 39. gxf4 {[%clk 0:01:15]}  Kb3 {[%clk 0:01:45]} 40. f5 {[%clk 0:01:09]}  Kxa3 {[%clk 0:01:44]} 41. fxg6 {[%clk 0:01:10]}  fxg6 {[%clk 0:01:43]} 42. Kf3 {[%clk 0:01:10]}  a5 {[%clk 0:01:43]} 43. Kg4 {[%clk 0:01:10]}  a4 {[%clk 0:01:43]} 44. h4 {[%clk 0:01:11]}  Kb3 {[%clk 0:01:42]} 45. Kg5 {[%clk 0:01:11]}  a3 {[%clk 0:01:42]} 46. Kxg6 {[%clk 0:01:12]}  a2 {[%clk 0:01:42]} 47. h5 {[%clk 0:01:13]}  a1=Q {[%clk 0:01:42]} 48. h6 {[%clk 0:01:13]}  Qh8 {[%clk 0:01:36]} 49. h7 {[%clk 0:01:08]}  Kc4 {[%clk 0:01:35]} 50. Kh6 {[%clk 0:01:09]}  Kd5 {[%clk 0:01:35]} 51. Kg6 {[%clk 0:01:10]}  Ke6 {[%clk 0:01:36]} 52. Kh6 {[%clk 0:01:11]}  Kf6 {[%clk 0:01:36]} 53. Kh5 {[%clk 0:01:11]}  Qxh7+ {[%clk 0:01:36]} 54. Kg4 {[%clk 0:01:12]}  Qe4+ {[%clk 0:01:36]} 55. Kh5 {[%clk 0:01:11]}  Qg2 {[%clk 0:01:35]} 56. Kh4 {[%clk 0:01:12]}  Kf5 {[%clk 0:01:35]} 57. Kh5 {[%clk 0:01:13]}  Qg5# {[%clk 0:01:35]} 0-1


[Site "https://www.chess.com"]

[Event "Titled Tuesday Blitz June 6 Late 2023"]
[White "zano2023"]
[Black "Sarkar, Justin"]
[BlackFideId "2010011"]
[WhiteElo "2136"]
[BlackElo "2151"]
[Result "1-0"]
[Round "8"]
[TimeControl "180+2"]
[Date "2023.06.07"]
[WhiteClock "0:00:23"]
[BlackClock "0:00:13"]
[Board "123"]

1. c4 {[%clk 0:03:00]}  h6 {[%clk 0:02:36]} 2. d4 {[%clk 0:02:59]}  c6 {[%clk 0:02:32]} 3. Nc3 {[%clk 0:02:58]}  d5 {[%clk 0:02:31]} 4. Nf3 {[%clk 0:02:56]}  Nf6 {[%clk 0:02:24]} 5. g3 {[%clk 0:02:56]}  e6 {[%clk 0:02:22]} 6. Bg2 {[%clk 0:02:56]}  Nbd7 {[%clk 0:02:18]} 7. O-O {[%clk 0:02:56]}  dxc4 {[%clk 0:02:15]} 8. Nd2 {[%clk 0:02:55]}  Nb6 {[%clk 0:02:07]} 9. e3 {[%clk 0:02:56]}  Bb4 {[%clk 0:01:52]} 10. Qe2 {[%clk 0:02:55]}  O-O {[%clk 0:01:47]} 11. Nxc4 {[%clk 0:02:54]}  c5 {[%clk 0:01:45]} 12. dxc5 {[%clk 0:02:44]}  Bxc5 {[%clk 0:01:43]} 13. Rd1 {[%clk 0:02:39]}  Qe7 {[%clk 0:01:38]} 14. b3 {[%clk 0:02:39]}  Nxc4 {[%clk 0:01:20]} 15. Qxc4 {[%clk 0:02:38]}  Rb8 {[%clk 0:01:19]} 16. Bb2 {[%clk 0:02:38]}  b6 {[%clk 0:01:15]} 17. Ne4 {[%clk 0:02:21]}  Nxe4 {[%clk 0:01:12]} 18. Bxe4 {[%clk 0:02:21]}  Bb7 {[%clk 0:01:06]} 19. Qc3 {[%clk 0:02:11]}  f6 {[%clk 0:01:02]} 20. Bg6 {[%clk 0:02:11]}  Rbc8 {[%clk 0:00:56]} 21. Rac1 {[%clk 0:01:50]}  Ba3 {[%clk 0:00:38]} 22. Qd2 {[%clk 0:01:44]}  Rxc1 {[%clk 0:00:33]} 23. Qxc1 {[%clk 0:01:27]}  Rc8 {[%clk 0:00:29]} 24. Qd2 {[%clk 0:01:04]}  Bxb2 {[%clk 0:00:28]} 25. Qxb2 {[%clk 0:01:05]}  f5 {[%clk 0:00:27]} 26. Qe5 {[%clk 0:01:02]}  Qf6 {[%clk 0:00:13]} 27. Qxf6 {[%clk 0:00:56]}  gxf6 {[%clk 0:00:13]} 28. e4 {[%clk 0:00:23]} 1-0


[Site "https://www.chess.com"]